fUSD/lending_fUSD_20240827
["ID","MTS","AMOUNT","RATE_DAILY","PERIOD"]
[336344534,1724780778872,-500.0,0.00010958,2]
[336344535,1724780778895,-500.0,0.00010958,2]
[336344536,1724780778918,-36.64652434,0.00010958,2]
[336344565,1724780961103,348.80383636,9.91e-05,2]
[336344568,1724780998152,361.18100883,9.91e-05,2]
[336344569,1724781013811,419.38668131,9.91e-05,2]
[336344570,1724781022540,175.81263979,9.91e-05,2]
[336344593,1724781031723,-588.01158738,0.0001,2]
[336344600,1724781031784,-461.98841262,0.0001,2]
[336344602,1724781031794,-1000.0,0.00010084,2]
[336344604,1724781031803,-993.34328537,0.0001089,2]
[336344606,1724781031813,-150.0,0.00010897,2]
[336344607,1724781031822,-100912.2575,0.00010898,2]
[336344608,1724781031831,-355.7893,0.00010899,2]
[336344609,1724781031841,-150.0,0.000109,2]
[336344610,1724781031850,-1915.56830346,0.000109,2]
[336344611,1724781031859,-155.0,0.00010949,2]
[336344612,1724781031868,-463.35347566,0.00010958,2]
[336344613,1724781031878,-500.0,0.00010958,2]
[336344614,1724781031887,-500.0,0.00010958,2]
[336344615,1724781031896,-500.0,0.00010958,2]
[336344616,1724781031906,-500.0,0.00010958,2]
[336344617,1724781031916,-500.0,0.00010958,2]
[336344618,1724781031926,-303.46,0.00010958,2]
[336344619,1724781031935,-500.0,0.00010958,2]
[336344620,1724781031945,-500.0,0.00010958,2]
[336344621,1724781031955,-500.0,0.00010958,2]
[336344622,1724781031964,-500.0,0.00010958,2]
[336344623,1724781031973,-500.0,0.00010958,2]
[336344624,1724781031982,-500.0,0.00010958,2]
[336344625,1724781031991,-500.0,0.00010958,2]
[336344626,1724781032001,-500.0,0.00010958,2]
[336344627,1724781032010,-361.00944323,0.00010958,2]
[336344628,1724781032019,-500.0,0.00010958,2]
[336344629,1724781032028,-294.54161552,0.00010958,2]
[336344631,1724781032037,-500.0,0.00010958,2]
[336344633,1724781032046,-500.0,0.00010958,2]
[336344635,1724781032056,-500.0,0.00010958,2]
[336344637,1724781032065,-558.77,0.00010958,2]
[336344639,1724781032074,-500.0,0.00010958,2]
[336344640,1724781032083,-380.1260554,0.00010958,2]
[336344641,1724781032092,-500.0,0.00010958,2]
[336344642,1724781032101,-272.94,0.00010958,2]
[336344643,1724781032111,-500.0,0.00010958,2]
[336344644,1724781032124,-500.0,0.00010958,2]
[336344645,1724781032134,-500.0,0.00010958,2]
[336344646,1724781032144,-500.0,0.00010958,2]
[336344647,1724781032154,-205.34,0.00010958,2]
[336344648,1724781032165,-500.0,0.00010958,2]
[336344649,1724781032174,-500.0,0.00010958,2]
[336344650,1724781032183,-1051.77846021,0.00010958,2]
[336344651,1724781032194,-450.64800859,0.00010958,2]
[336344652,1724781032203,-413.5714636,0.00010958,2]
[336344653,1724781032212,-500.0,0.00010958,2]
[336344654,1724781032221,-2000.0,0.00010959,2]
[336344655,1724781032231,-299.99,0.00010959,2]
[336344656,1724781032240,-175.51,0.00010959,2]
[336344657,1724781032249,-250.0,0.00010959,2]
[336344658,1724781032258,-150.0,0.00010959,2]
[336344659,1724781032267,-1500.0,0.00010959,2]
[336344660,1724781032277,-1649.15,0.00010959,2]
[336344661,1724781032286,-500.0,0.00010973,2]
[336344662,1724781032296,-500.0,0.00010973,2]
[336344663,1724781032306,-150.85,0.0001099,2]
[336344664,1724781032315,-150.85,0.0001099,2]
[336344665,1724781032324,-150.85,0.0001099,2]
[336344666,1724781032333,-150.85,0.0001099,2]
[336344667,1724781032343,-500.0,0.00010998,2]
[336344668,1724781032353,-500.0,0.00010998,2]
[336344669,1724781032362,-500.0,0.00010998,2]
[336344670,1724781032371,-500.0,0.00010998,2]
[336344671,1724781032380,-500.0,0.00010998,2]
[336344672,1724781032390,-500.0,0.00010998,2]
[336344673,1724781032399,-500.0,0.00010998,2]
[336344674,1724781032408,-500.0,0.00010998,2]
[336344675,1724781032417,-500.0,0.00010998,2]
[336344676,1724781032426,-500.0,0.00010998,2]
[336344677,1724781032436,-500.0,0.00010998,2]
[336344678,1724781032445,-500.0,0.00010998,2]
[336344679,1724781032454,-500.0,0.00010998,2]
[336344680,1724781032463,-500.0,0.00010998,2]
[336344681,1724781032473,-640.02,0.00010998,2]
[336344682,1724781032483,-500.0,0.00010998,2]
[336344683,1724781032493,-500.0,0.00010998,2]
[336344684,1724781032504,-500.0,0.00010998,2]
[336344685,1724781032513,-500.0,0.00010998,2]
[336344686,1724781032522,-500.0,0.00010998,2]
[336344687,1724781032533,-500.0,0.00010998,2]
[336344688,1724781032544,-500.0,0.00010998,2]
[336344689,1724781032554,-500.0,0.00010998,2]
[336344690,1724781032564,-500.0,0.00010998,2]
[336344691,1724781032574,-500.0,0.00010998,2]
[336344692,1724781032584,-500.0,0.00010998,2]
[336344693,1724781032594,-500.0,0.00010998,2]
[336344694,1724781032611,-500.0,0.00010998,2]
[336344695,1724781032620,-500.0,0.00010998,2]
[336344696,1724781032630,-500.0,0.00010998,2]
[336344697,1724781032641,-500.0,0.00010998,2]
[336344698,1724781032652,-500.0,0.00010998,2]
[336344699,1724781032662,-500.0,0.00010998,2]
[336344700,1724781032672,-500.0,0.00010998,2]
[336344701,1724781032682,-575.87359032,0.00010998,2]
[336344702,1724781032692,-1000.0,0.00010999,2]
[336344703,1724781032702,-1000.0,0.00010999,2]
[336344704,1724781032711,-500.0,0.00010999,2]
[336344705,1724781032720,-500.0,0.00010999,2]
[336344706,1724781032730,-500.0,0.00010999,2]
[336344707,1724781032739,-500.0,0.00010999,2]
[336344708,1724781032749,-500.0,0.00010999,2]
[336344709,1724781032758,-641.74,0.00010999,2]
[336344710,1724781032767,-1000.0,0.00010999,2]
[336344711,1724781032777,-500.0,0.00010999,2]
[336344712,1724781032787,-500.0,0.00010999,2]
[336344713,1724781032795,-500.0,0.00010999,2]
[336344714,1724781032805,-500.0,0.00010999,2]
[336344715,1724781032814,-500.0,0.00010999,2]
[336344716,1724781032824,-500.0,0.00010999,2]
[336344717,1724781032833,-166.9,0.00010999,2]
[336344718,1724781032843,-500.0,0.00010999,2]
[336344719,1724781032857,-971.14,0.00010999,2]
[336344720,1724781032867,-971.14,0.00010999,2]
[336344721,1724781032876,-971.14,0.00010999,2]
[336344722,1724781032885,-971.14,0.00010999,2]
[336344723,1724781032894,-971.14,0.00010999,2]
[336344724,1724781032903,-971.14,0.00010999,2]
[336344725,1724781032912,-971.14,0.00010999,2]
[336344726,1724781032922,-971.14,0.00010999,2]
[336344727,1724781032931,-971.14,0.00010999,2]
[336344728,1724781032941,-971.14,0.00010999,2]
[336344729,1724781032950,-971.14,0.00010999,2]
[336344730,1724781032960,-971.14,0.00010999,2]
[336344731,1724781032969,-971.14,0.00010999,2]
[336344732,1724781032978,-971.14,0.00010999,2]
[336344733,1724781032987,-971.14,0.00010999,2]
[336344734,1724781032997,-971.14,0.00010999,2]
[336344735,1724781033006,-971.14,0.00010999,2]
[336344736,1724781033015,-971.14,0.00010999,2]
[336344737,1724781033024,-971.14,0.00010999,2]
[336344738,1724781033035,-971.14,0.00010999,2]
[336344739,1724781033044,-971.14,0.00010999,2]
[336344740,1724781033054,-971.14,0.00010999,2]
[336344741,1724781033065,-971.14,0.00010999,2]
[336344742,1724781033075,-971.14635685,0.00010999,2]
[336344743,1724781033085,-710.77,0.00010999,2]
[336344744,1724781033095,-710.77,0.00010999,2]
[336344745,1724781033109,-710.77,0.00010999,2]
[336344746,1724781033123,-710.77,0.00010999,2]
[336344747,1724781033132,-710.77,0.00010999,2]
[336344748,1724781033142,-710.77,0.00010999,2]
[336344749,1724781033152,-710.77,0.00010999,2]
[336344750,1724781033163,-710.77,0.00010999,2]
[336344751,1724781033174,-710.77,0.00010999,2]
[336344752,1724781033184,-710.77,0.00010999,2]
[336344753,1724781033197,-710.77,0.00010999,2]
[336344754,1724781033207,-710.77,0.00010999,2]
[336344755,1724781033217,-710.77,0.00010999,2]
[336344756,1724781033226,-710.77,0.00010999,2]
[336344757,1724781033236,-710.77,0.00010999,2]
[336344758,1724781033246,-710.77,0.00010999,2]
[336344759,1724781033256,-710.77,0.00010999,2]
[336344760,1724781033266,-710.77,0.00010999,2]
[336344761,1724781033276,-710.77,0.00010999,2]
[336344762,1724781033286,-710.77,0.00010999,2]
[336344763,1724781033296,-710.77,0.00010999,2]
[336344764,1724781033306,-710.77,0.00010999,2]
[336344765,1724781033316,-710.77,0.00010999,2]
[336344766,1724781033327,-710.82,0.00010999,2]
[336344767,1724781033337,-500.0,0.00010999,2]
[336344768,1724781033347,-500.0,0.00010999,2]
[336344769,1724781033364,-500.0,0.00010999,2]
[336344770,1724781033375,-500.0,0.00010999,2]
[336344771,1724781033386,-500.0,0.00010999,2]
[336344772,1724781033396,-500.0,0.00010999,2]
[336344773,1724781033406,-500.0,0.00010999,2]
[336344774,1724781033417,-500.0,0.00010999,2]
[336344775,1724781033428,-500.0,0.00010999,2]
[336344776,1724781033439,-500.0,0.00010999,2]
[336344777,1724781033448,-500.0,0.00010999,2]
[336344778,1724781033459,-500.0,0.00010999,2]
[336344779,1724781033469,-500.0,0.00010999,2]
[336344780,1724781033479,-500.0,0.00010999,2]
[336344781,1724781033489,-500.0,0.00010999,2]
[336344782,1724781033501,-500.0,0.00010999,2]
[336344783,1724781033513,-500.0,0.00010999,2]
[336344784,1724781033523,-500.0,0.00010999,2]
[336344785,1724781033534,-608.48,0.00010999,2]
[336344786,1724781033545,-500.0,0.00010999,2]
[336344787,1724781033556,-548.75249879,0.00010999,2]
[336344788,1724781033567,-313667.65664717,0.00011,2]
[336344789,1724781034441,-0.2027997,0.00011,2]
[336344790,1724781034453,-11141.73894755,0.00011,2]
[336344791,1724781034465,-300.0,0.00011,2]
[336344792,1724781034477,-159407.1240147,0.00011,2]
[336344793,1724781034491,-1096.62478645,0.00011,2]
[336344794,1724781034507,-839.21568449,0.00011,2]
[336344795,1724781034519,-399.20391486,0.00011,2]
[336344796,1724781034530,-1926.859531,0.00011,2]
[336344797,1724781034542,-484.32,0.00011,2]
[336344798,1724781034554,-503.022718,0.00011,2]
[336344808,1724781037827,-10420.80222486,0.00011,2]
[336344810,1724781037840,-7768.1384,0.00011,2]
[336344812,1724781037854,-7146.2938,0.00011,2]
[336344814,1724781037868,-17006.65070178,0.00011,2]
[336344815,1724781037884,-502.47447285,0.00011,2]
[336344816,1724781037897,-556.4527113,0.00011,2]
[336344817,1724781037907,-333.38004988,0.00011,2]
[336344818,1724781037942,-351.17923036,0.00011,2]
[336344819,1724781037953,-1258.75000001,0.00011,2]
[336344820,1724781038002,-519.13843533,0.00011,2]
[336344821,1724781038170,-358.48667185,0.00011,2]
[336344822,1724781038182,-2855.0,0.00011,2]
[336344823,1724781038193,-749.43187053,0.00011,2]
[336344824,1724781038234,-3059.08902441,0.00011,2]
[336344825,1724781038245,-526.4898253,0.00011,2]
[336344995,1724781039896,-286.4,0.00011,2]
[336344999,1724781039907,-300.59930483,0.00011,2]
[336345011,1724781039963,-11953.20000001,0.00011,2]
[336345014,1724781039975,-7827.40409999,0.00011,2]
[336345016,1724781039989,-530.37784572,0.00011,2]
[336345027,1724781040048,-92339.98351137,0.00011,2]
[336345029,1724781040060,-2347.58158213,0.00011,2]
[336345030,1724781040072,-4432.26839026,0.00011,2]
[336345031,1724781040083,-3024.61252761,0.00011,2]
[336345037,1724781040269,-2987.77510943,0.00011,2]
[336345328,1724781042852,-4996.9580171,0.00011,2]
[336345341,1724781042966,-827.19049739,0.00011,2]
[336345343,1724781042979,-6462.92999997,0.00011,2]
[336345345,1724781042990,-599.65000005,0.00011,2]
[336345354,1724781043034,-760.21,0.00011,2]
[336345357,1724781043047,-406.54574925,0.00011,2]
[336345360,1724781043059,-623.25,0.00011,2]
[336345362,1724781043071,-1074.33466954,0.00011,2]
[336345365,1724781043082,-483.05378156,0.00011,2]
[336345367,1724781043092,-711.52044922,0.00011,2]
[336345369,1724781043104,-4330.59626476,0.00011,2]
[336345371,1724781043115,-6571.75508606,0.00011,2]
[336345373,1724781043128,-715.43335499,0.00011,2]
[336345375,1724781043139,-1700.6,0.00011,2]
[336345377,1724781043150,-547.46957672,0.00011,2]
[336345380,1724781043162,-427.149998,0.00011,2]
[336345639,1724781045815,-192.75,0.00010959,2]
[336345641,1724781045825,-834.48231092,0.00011,2]
[336345644,1724781045836,-301.4499998,0.00011,2]
[336345649,1724781045877,-7359.193961,0.00011,2]
[336345651,1724781045888,-1000.0,0.00011,2]
[336345657,1724781045940,-1235.87774031,0.00011,2]
[336345660,1724781045952,-349.99877428,0.00011,2]
[336345705,1724781297577,269.53,8.219e-05,2]
[336345706,1724781363958,200.0,9.886e-05,2]
[336345707,1724781448429,172.33537522,5e-05,2]
[336345708,1724781468273,412.35152068,6.061e-05,2]
[336345709,1724781478245,693.93284973,6.061e-05,2]
[336345710,1724781481931,291.90302489,6.061e-05,2]
[336345711,1724781484403,1270.23398053,6.061e-05,2]
[336345712,1724781494532,3074.67589109,6.061e-05,2]
[336345713,1724781501718,159.22460451,6.061e-05,2]
[336345714,1724781505839,16250.27322581,6.061e-05,2]
[336345715,1724781508242,155.0,6.061e-05,120]
[336345716,1724781511625,20417.05914824,6.061e-05,2]
[336345717,1724781517921,174.49068,6.061e-05,2]
[336345718,1724781519803,155.09465107,6.061e-05,2]
[336345719,1724781525735,1311.65694169,6.061e-05,2]
[336345720,1724781532414,760.9392262,5e-05,2]
[336345721,1724781541582,444.93535409,9.91e-05,2]
[336345722,1724781559167,313.76877667,9.91e-05,2]
[336345723,1724781567027,3073.56727407,7.347e-05,2]
[336345724,1724781584877,760.65765034,7.347e-05,2]
[336345725,1724781591195,160.09325735,9.91e-05,2]
[336345726,1724781591707,155.0,9.91e-05,2]
[336345727,1724781630574,16943.79219461,8.905e-05,2]
[336345728,1724781746707,283.4363462,8.905e-05,2]
[336345729,1724781752217,155.0,0.00010794,120]
[336345730,1724781770898,889.69296972,8.905e-05,2]
[336345731,1724781773733,300.0,8.905e-05,2]
[336345732,1724781805599,175.76,9.847e-05,2]
[336345733,1724781816066,19905.83476384,8.905e-05,2]
[336345734,1724781827390,760.9392262,8.905e-05,2]
[336345735,1724781848733,500.0,9.851e-05,2]
[336345736,1724781851865,175.26,7.88e-05,2]
[336345737,1724781878326,169.7,9.856e-05,2]
[336345738,1724781878569,169.7,9.858e-05,2]
[336345739,1724781878807,169.7,9.861e-05,2]
[336345740,1724781879235,169.7,9.863e-05,2]
[336345741,1724781879443,169.7,9.866e-05,2]
[336345742,1724781879717,169.7,9.869e-05,2]
[336345743,1724781879931,169.7,9.871e-05,2]
[336345744,1724781880138,169.7,9.874e-05,2]
[336345745,1724781880374,169.7,9.877e-05,2]
[336345746,1724781880586,169.7,9.879e-05,2]
[336345747,1724781880831,169.7,9.882e-05,2]
[336345748,1724781881075,169.7,9.884e-05,2]
[336345749,1724781881419,169.7,9.887e-05,2]
[336345750,1724781881536,169.7,9.89e-05,2]
[336345751,1724781881799,169.7,9.892e-05,2]
[336345752,1724781882010,169.7,9.895e-05,2]
[336345753,1724781882232,169.7,9.897e-05,2]
[336345754,1724781882460,169.7,9.9e-05,2]
[336345755,1724781882662,169.7,9.903e-05,2]
[336345756,1724781882905,169.7,9.905e-05,2]
[336345757,1724781884010,199.94,9.858e-05,2]
[336345758,1724781911668,840.0,9.835e-05,2]
[336345759,1724781915118,150.0,9.888e-05,2]
[336345760,1724781915933,305.59,8.219e-05,2]
[336345761,1724781922124,500.0,8.905e-05,2]
[336345762,1724781922469,500.0,8.905e-05,2]
[336345763,1724781922810,500.0,8.905e-05,2]
[336345764,1724781923176,500.0,8.905e-05,2]
[336345765,1724781923494,694.0,8.905e-05,2]
[336345766,1724781949396,760.65765034,9.858e-05,2]
[336345768,1724782032056,2000.0,9.9e-05,2]
[336345771,1724782059615,35748.21411799,9.86e-05,2]
[336345772,1724782065323,1303.071494,9.892e-05,2]
[336345773,1724782070289,250.0,9.774e-05,2]
[336345774,1724782074723,13979.42,9.767e-05,2]
[336345775,1724782084521,1000.0,9.767e-05,2]
[336345776,1724782092907,214.98,9.866e-05,2]
[336345777,1724782103575,619.94,9.778e-05,2]
[336345778,1724782132996,183.9,9.755e-05,2]
[336346283,1724782212121,514.82,9.714e-05,2]
[336346285,1724782231966,-228.66,9.943e-05,2]
[336346286,1724782231979,-155.0,9.988e-05,2]
[336346287,1724782231989,-404.87951466,9.999e-05,2]
[336346288,1724782231998,-2924.55992186,9.999e-05,2]
[336346289,1724782232007,-300.0,0.0001,3]
[336346290,1724782232017,-1077.49080297,0.00010009,2]
[336346291,1724782232028,-1136.7237882,0.00010009,2]
[336346292,1724782232042,-2600.00989008,0.00010009,2]
[336346293,1724782232118,-691.69060451,0.00010009,2]
[336346294,1724782232130,-1241.68,0.00010009,2]
[336346295,1724782232142,-5989.24344746,0.00010009,2]
[336346299,1724782237952,-309.58879588,9.999e-05,2]
[336346301,1724782237962,-48.74605576,0.00010009,2]
[336346302,1724782238031,-304.94405594,0.00010009,2]
[336346303,1724782238042,-725.98785165,0.00010009,2]
[336346304,1724782238110,-14827.13549108,0.00010009,2]
[336346305,1724782238120,-155.14205373,0.00010009,2]
[336346306,1724782238129,-253.22695752,0.00010009,2]
[336346307,1724782238138,-365.68547453,0.00010009,2]
[336346308,1724782238147,-203.75328337,0.00010026,2]
[336346309,1724782238157,-157.07336135,0.00010026,2]
[336346310,1724782238166,-155.0,0.00010026,2]
[336346311,1724782238175,-270.62814649,0.00010026,2]
[336346312,1724782238184,-241.54230122,0.00010097,2]
[336346313,1724782238193,-216.87279016,0.00010097,2]
[336346314,1724782238203,-700.0,0.000101,3]
[336346315,1724782238212,-1100.0,0.000102,3]
[336346316,1724782238221,-179.99,0.000102,2]
[336346317,1724782238230,-150.99,0.000102,2]
[336346318,1724782238239,-1500.0,0.000103,3]
[336346319,1724782238248,-1837.92341953,0.00010355,2]
[336346320,1724782238257,-1900.0,0.000104,3]
[336346321,1724782238267,-305.59,0.00010468,2]
[336346322,1724782238276,-507.84598486,0.00010471,2]
[336346323,1724782238285,-499.99,0.00010474,2]
[336346324,1724782238294,-300.0,0.000105,3]
[336346325,1724782238303,-299.99,0.00010505,2]
[336346326,1724782238313,-150.99,0.00010505,2]
[336346327,1724782238322,-155.57891253,0.00010505,2]
[336346328,1724782238331,-155.0,0.00010505,2]
[336346329,1724782238340,-150.0,0.00010565,2]
[336346330,1724782238349,-2380.42,0.00010566,2]
[336346332,1724782238358,-503.0,0.00010566,2]
[336346334,1724782238368,-300.0,0.000106,3]
[336346336,1724782238377,-2454.7959,0.000107,2]
[336346338,1724782238386,-300.0,0.000107,3]
[336346340,1724782238395,-27532.89619931,0.000108,2]
[336346342,1724782238404,-300.0,0.000108,3]
[336346344,1724782238413,-63760.31697697,0.0001085,2]
[336346346,1724782238425,-914.0500234,0.0001085,2]
[336346348,1724782238438,-2166.78342138,0.0001085,2]
[336346350,1724782238449,-1500.04957825,0.0001085,2]
[336346352,1724782238459,-4322.27466439,0.00010899,2]
[336346354,1724782238474,-1459.35853561,0.00010899,2]
[336346356,1724782238483,-753.56438041,0.00010899,2]
[336346358,1724782238492,-753.56438038,0.00010899,2]
[336346360,1724782238502,-753.56438038,0.00010899,2]
[336346362,1724782238512,-753.56438038,0.00010899,2]
[336346364,1724782238521,-753.56438038,0.00010899,2]
[336346366,1724782238531,-753.56438038,0.00010899,2]
[336346368,1724782238540,-753.56438038,0.00010899,2]
[336346370,1724782238552,-753.56438038,0.00010899,2]
[336346372,1724782238562,-753.56438038,0.00010899,2]
[336346374,1724782238571,-6525.0403,0.000109,2]
[336346376,1724782238580,-285.20473214,0.000109,2]
[336346378,1724782238590,-312.50806132,0.000109,2]
[336346380,1724782238599,-753.56438038,0.000109,2]
[336346382,1724782238608,-1200.0,0.000109,3]
[336346384,1724782238618,-150.0,0.000109,2]
[336346386,1724782238627,-354.6886366,0.000109,2]
[336346387,1724782238636,-1058.69852512,0.000109,2]
[336346389,1724782238645,-158.19368247,0.000109,2]
[336346391,1724782238655,-990.14461503,0.000109,2]
[336346393,1724782238666,-703.01355159,0.000109,2]
[336346395,1724782238677,-1255.0,0.000109,2]
[336346531,1724782240043,-219.68964161,0.00010799,2]
[336346533,1724782240053,-639.82161934,0.000109,2]
[336346535,1724782240062,-342.0,0.0001092,2]
[336346537,1724782240071,-412.70568174,0.00010958,2]
[336346539,1724782240083,-101.82532526,0.00010958,2]
[336346541,1724782240092,-311.270309,0.00010958,2]
[336346543,1724782240101,-522.441553,0.00010958,2]
[336346544,1724782240111,-183.746608,0.00010958,2]
[336346546,1724782240120,-152.14,0.00010959,2]
[336346548,1724782240129,-250.0,0.00010959,2]
[336346550,1724782240139,-64.35926205,0.00010959,2]
[336346552,1724782240150,-1435.64073795,0.00010959,2]
[336346554,1724782240160,-152.54,0.00010959,2]
[336346556,1724782240170,-150.0,0.00010959,2]
[336346558,1724782240179,-185.41,0.00010966,2]
[336346560,1724782240190,-500.0,0.00010973,2]
[336346562,1724782240199,-150.85,0.0001099,2]
[336346564,1724782240210,-187.0,0.0001099,2]
[336346566,1724782240220,-500.0,0.00010998,2]
[336346568,1724782240229,-20.45926205,0.00010998,2]
[336346571,1724782240240,-479.54073795,0.00010998,2]
[336346573,1724782240249,-500.0,0.00010998,2]
[336346574,1724782240258,-500.0,0.00010998,2]
[336346576,1724782240267,-500.0,0.00010998,2]
[336346578,1724782240277,-500.0,0.00010998,2]
[336346580,1724782240286,-77.04105143,0.00010998,2]
[336346582,1724782240298,-199.88980823,0.00010998,2]
[336346585,1724782240308,-500.0,0.00010998,2]
[336346586,1724782240317,-355.73432531,0.00010998,2]
[336346589,1724782240327,-500.0,0.00010998,2]
[336346590,1724782240336,-500.0,0.00010998,2]
[336346592,1724782240346,-500.0,0.00010998,2]
[336346594,1724782240355,-500.0,0.00010998,2]
[336346596,1724782240364,-500.0,0.00010998,2]
[336346598,1724782240374,-500.0,0.00010998,2]
[336346600,1724782240383,-500.0,0.00010998,2]
[336346602,1724782240392,-500.0,0.00010998,2]
[336346604,1724782240400,-500.0,0.00010998,2]
[336346606,1724782240410,-299.47918721,0.00010998,2]
[336346609,1724782240426,-200.52081279,0.00010998,2]
[336346611,1724782240436,-500.0,0.00010998,2]
[336346613,1724782240445,-500.0,0.00010998,2]
[336346615,1724782240455,-500.0,0.00010998,2]
[336346616,1724782240469,-411.53192471,0.00010998,2]
[336346618,1724782240478,-500.0,0.00010998,2]
[336346620,1724782240487,-500.0,0.00010998,2]
[336346622,1724782240496,-137.90066952,0.00010998,2]
[336346625,1724782240513,-362.09933048,0.00010998,2]
[336346627,1724782240522,-500.0,0.00010998,2]
[336346629,1724782240532,-408.22235001,0.00010998,2]
[336346631,1724782240544,-91.77764999,0.00010998,2]
[336346633,1724782240554,-500.0,0.00010998,2]
[336346635,1724782240563,-500.0,0.00010998,2]
[336346637,1724782240572,-500.0,0.00010998,2]
[336346639,1724782240581,-164.7499865,0.00010998,2]
[336346641,1724782240592,-335.2500135,0.00010998,2]
[336346643,1724782240602,-500.0,0.00010998,2]
[336346645,1724782240611,-500.0,0.00010998,2]
[336346647,1724782240620,-14.19080249,0.00010998,2]
[336346649,1724782240631,-485.80919751,0.00010998,2]
[336346651,1724782240641,-500.0,0.00010998,2]
[336346653,1724782240650,-500.0,0.00010998,2]
[336346655,1724782240660,-500.0,0.00010998,2]
[336346657,1724782240669,-644.37762194,0.00010998,2]
[336346659,1724782240679,-472.11318055,0.00010998,2]
[336346662,1724782240705,-2805.1,0.0001075,2]
[336346882,1724782243044,-711.82512358,0.0001075,2]
[336346913,1724782243354,-591.9999999,0.0001075,2]
[336346915,1724782243366,-971.35353181,0.0001075,2]
[336347126,1724782246002,-14077.52244471,0.0001075,2]
[336347128,1724782246012,-8252.82025611,0.000109,2]
[336347130,1724782246022,-27.88681945,0.00010998,2]
[336347132,1724782246031,-500.0,0.00010998,2]
[336347134,1724782246040,-500.0,0.00010998,2]
[336347136,1724782246050,-60.91769572,0.00010998,2]
[336347146,1724782246153,-439.08230428,0.00010998,2]
[336347148,1724782246163,-500.0,0.00010998,2]
[336347150,1724782246172,-500.0,0.00010998,2]
[336347152,1724782246181,-241.6230256,0.00010998,2]
[336347154,1724782246193,-258.3769744,0.00010998,2]
[336347156,1724782246203,-500.0,0.00010998,2]
[336347158,1724782246212,-151.32367669,0.00010998,2]
[336347160,1724782246221,-500.0,0.00010998,2]
[336347162,1724782246231,-20.84524712,0.00010998,2]
[336347164,1724782246242,-479.15475288,0.00010998,2]
[336347166,1724782246251,-500.0,0.00010998,2]
[336347168,1724782246261,-500.0,0.00010998,2]
[336347170,1724782246270,-500.0,0.00010998,2]
[336347172,1724782246279,-500.0,0.00010998,2]
[336347173,1724782246288,-500.0,0.00010998,2]
[336347175,1724782246298,-500.0,0.00010998,2]
[336347177,1724782246307,-500.0,0.00010998,2]
[336347179,1724782246316,-500.0,0.00010998,2]
[336347181,1724782246326,-500.0,0.00010998,2]
[336347183,1724782246335,-500.0,0.00010998,2]
[336347185,1724782246344,-500.0,0.00010998,2]
[336347187,1724782246353,-500.0,0.00010998,2]
[336347189,1724782246362,-500.0,0.00010998,2]
[336347191,1724782246372,-500.0,0.00010998,2]
[336347193,1724782246381,-500.0,0.00010998,2]
[336347195,1724782246391,-500.0,0.00010998,2]
[336347197,1724782246400,-500.0,0.00010998,2]
[336347199,1724782246409,-314.15734685,0.00010998,2]
[336347201,1724782246418,-500.0,0.00010998,2]
[336347202,1724782246428,-500.0,0.00010998,2]
[336347204,1724782246438,-500.0,0.00010998,2]